Cogmind - Beta 14 @@@ ROGUE MODE // 2024.08.11 @ 16:11:06 Player: SammyIsShy Result: Destroyed by G-34 Mercenary with Small Laser Performance ------------- Evolutions (0) 0 Regions Visited (1) 200 Robots Destroyed (13) 65 Value Destroyed (398) 398 Prototype IDs (0) 0 Alien Tech Used (0) 0 Bonus (0) 0 TOTAL SCORE: 663 Bonus ------- None Cogmind --------- Core Integrity 0/250 Matter 300/300 Energy 100/100 System Corruption 0% Temperature Cool (6) Movement Core (1400) Ox27 Location -10/Materials Parts ------- > --- POWER (1) -------- (None) > --- PROPULSION (2) --- (None) > --- UTILITY (2) ------ Huge Storage Unit Structural Scanner > --- WEAPON (2) ------- Assault Rifle > --- INVENTORY (25) --- Aluminum Leg Aluminum Leg Aluminum Leg Aluminum Leg Wheel Small Matter Pod (50) Mining Laser Peak State ------------ > --- POWER ------------ Light Ion Engine > --- PROPULSION ------- Aluminum Leg Aluminum Leg > --- UTILITY ---------- High-capacity Storage Unit Small Matter Pod > --- WEAPON ----------- EM Pulse Gun Light Assault Rifle > --- INVENTORY -------- Wheel Wheel Small Laser Assault Rifle [Rating: 7] Favorites ----------- Power Light Ion Engine Engine Light Ion Engine Propulsion Wheel Leg Aluminum Leg Wheel Wheel Flight Unit Flight Unit Utility Huge Storage Unit Device Structural Scanner Storage Huge Storage Unit Weapon Assault Rifle Energy Gun Small Laser Ballistic Gun Assault Rifle Build | -11 -10 ------- Run | Yrd Mat Slots Evolved . | . . Power . | . . Propulsion . | . . Utility . | . . Weapon . | . . Parts Attached 15 | 6 9 Power 1 | 1 . Engine 1 | 1 . Core . | . . Reactor . | . . Propulsion 6 | 2 4 Treads . | . . Leg 3 | 2 1 Wheel 2 | . 2 Hover . | . . Flight 1 | . 1 Utility 4 | 1 3 Device 1 | . 1 Storage 3 | 1 2 Processor . | . . Hackware . | . . Protection . | . . Artifact . | . . Weapon 4 | 2 2 Energy Gun 2 | 1 1 Energy Cannon . | . . Ballistic Gun 2 | 1 1 Ballistic Cannon . | . . Launcher . | . . Special Weapon . | . . Impact Weapon . | . . Slashing Weapon . | . . Piercing Weapon . | . . Special Melee Weapon . | . . Unidentified Prototypes . | . . Parts Lost 8 | . 8 Power 1 | . 1 Propulsion 4 | . 4 Utility . | . . Weapon 3 | . 3 Highest Loss Streak 2 | . 2 To Critical Strikes . | . . Average Slot Usage (%) 77 | . 77 Engine 6 | . 6 Leg 4 | . 4 Wheel 9 | . 9 Flight 7 | . 7 Device 9 | . 9 Storage 18 | . 18 Energy Gun 3 | . 3 Ballistic Gun 16 | . 16 Peak Build Rating 7 | 6 7 Average Rating 5 | 4 5 On Entrance 3 | . 6 Naked Turns . | . . Heaviest Build 87 | 7 87 Greatest Support 20 | 20 20 Greatest Overweight (x) 27 | . 27 Average Overweight (x) 4 | . 6 Largest Inventory Capacity 25 | 5 25 Average Capacity 22 | 5 24 Most Carried 7 | 4 7 Average Carried 5 | 2 5 Final Capacity 25 | 5 25 Final Carried 7 | 4 7 Class Distribution -------------------- 100% | Mutant Dominant Class ---------------- Mutant | -10/Materials Resources | -11 -10 ----------- Run | Yrd Mat Matter Collected 484 | 253 231 Remotely . | . . Salvage Created 500 | 70 430 Parts 33 | 4 29 Haulers Intercepted . | . . Recyclers Shooed . | . . Parts Field Recycled . | . . Retrieved Matter . | . . Parts Self-Destructed . | . . Prevented . | . . Kills | -11 -10 ------- Run | Yrd Mat Combat Hostiles Destroyed 10 | 1 9 Guns 10 | 1 9 Classes Destroyed 4 | 2 2 Worker 1 | 1 . Builder 1 | . 1 Watcher 1 | . 1 Grunt 10 | 1 9 Best Kill Streak 2 | 1 2 Combat Bots Only 2 | 1 2 Max Kills in Single Turn 1 | 1 1 Gunslinging . | . . Exploded . | . . Melee . | . . Uniques/NPCs Destroyed . | . . Combat | -11 -10 -------- Run | Yrd Mat Hostile Shots Fired 121 | 6 115 Missed 39 | 2 37 Damage Taken 990 | 44 946 Core 251 | 10 241 Absorbed by Shields . | . . Core Remaining (%) 96 | 96 . Volleys Fired 55 | 7 48 Largest 2 | 2 2 Hottest 60 | 60 60 Shots Fired 95 | 14 81 Gun 95 | 14 81 Cannon . | . . Launcher . | . . Special . | . . Kinetic 69 | 7 62 Thermal 17 | . 17 Explosive . | . . Electromagnetic 9 | 7 2 Robot Hit Streak 11 | 5 11 Robot Miss Streak 3 | 2 3 Penetration Max . | . . Secondary Targets . | . . Shots Hit Robots 65 | 8 57 Core Hits 31 | 4 27 Critical Kills . | . . Critical Parts Destroyed . | . . Critical Strikes . | . . Melee Attacks . | . . Impact . | . . Slashing . | . . Piercing . | . . Sneak Attacks . | . . Combat Hostiles . | . . Follow-up Attacks . | . . Damage Inflicted 747 | 68 679 Guns 710 | 68 642 Cannons . | . . Explosions . | . . Melee . | . . Ramming 37 | . 37 Kinetic 553 | 43 510 Thermal 119 | . 119 Explosive . | . . Electromagnetic 38 | 25 13 Impact . | . . Slashing . | . . Piercing . | . . Highest Corruption . | . . Average Corruption . | . . Corruption Purged . | . . Corruption Blocked . | . . Overload Shots . | . . Overflow Damage . | . . Projectiles . | . . Explosions . | . . Melee . | . . Knockbacks 1 | . 1 Impact 1 | . 1 Kinetic . | . . Secondary . | . . Self-Inflicted Damage 15 | . 15 Shots . | . . Rammed 6 | . 6 Targets Rammed 7 | . 7 Kicked 1 | . 1 Crushed . | . . Highest Temperature 56 | 40 56 Average Temperature 20 | 18 20 Received Heat Transfer 558 | 24 534 Siege Activations . | . . Robots Corrupted . | . . Combat Hostiles . | . . Parts Fried . | . . Impact Corruptions . | . . Robots Melted . | . . Combat Hostiles . | . . Parts Melted . | . . Heat Transferred 275 | . 275 Parts Sabotaged . | . . Parts Stolen . | . . Parts Stripped . | . . Power Chain Reactions . | . . Alert | -11 -10 ------- Run | Yrd Mat Peak Influence 141 | 25 141 Initial 16 | . 16 Average 41 | 3 45 Maximum Alert Level . | . . Low Security (%) 100 | 100 100 Level 1 . | . . Level 2 . | . . Level 3 . | . . Level 4 . | . . Level 5 . | . . High Security . | . . Max Security . | . . Squads Dispatched 3 | . 3 Investigation 2 | . 2 Extermination . | . . Reinforcement 1 | . 1 Assault . | . . Garrison . | . . Intercept . | . . Searches Triggered . | . . Construction Impeded . | . . Haulers Reinforced . | . . Active Scanning Responses . | . . Cargo Convoy Interrupts . | . . Stealth | -11 -10 --------- Run | Yrd Mat Distress Signals . | . . Communications Jammed . | . . Distress Signals . | . . Times Spotted 18 | 1 17 Peak Tracking Total 4 | 1 4 Tactical Retreats 2 | . 2 Traps | -11 -10 ------- Run | Yrd Mat Traps Triggered 2 | . 2 Indirectly . | . . Trap Hack Attempts . | . . Triggered . | . . Disarmed . | . . Reprogrammed . | . . Reused . | . . Traps Extracted . | . . Installed . | . . Triggered . | . . Machines | -11 -10 ---------- Run | Yrd Mat Machines Disabled 1 | . 1 Max in Single Turn 1 | . 1 Machines Repaired . | . . Machines Dismantled . | . . Machines Sabotaged . | . . Overloaded Fab Kills . | . . Hacking | -11 -10 --------- Run | Yrd Mat Machines Accessed 1 | . 1 Terminals . | . . Fabricators . | . . Repair Stations . | . . Recycling Units 1 | . 1 Scanalyzers . | . . Garrison Access . | . . Total Hacks 2 | . 2 Successful 2 | . 2 Failed . | . . Catastrophic . | . . Database Lockouts . | . . Manual . | . . Terminals . | . . Fabricators . | . . Repair Stations . | . . Recycling Units 2 | . 2 Scanalyzers . | . . Garrison Access . | . . Terminal Hacks . | . . Fabricator Hacks . | . . Repair Station Hacks . | . . Recycling Unit Hacks 2 | . 2 Process 1 | . 1 Retrieve Components 1 | . 1 Scanalyzer . | . . Garrison Access Hacks . | . . Unauthorized Hacks . | . . Terminals . | . . Fabricators . | . . Repair Stations . | . . Recycling Units . | . . Scanalyzers . | . . Garrison Access . | . . Data Cores Recovered . | . . Used . | . . Hacking Detections 1 | . 1 Full Trace Events . | . . Feedback Events . | . . Feedback Blocked . | . . Robot Schematics Acquired . | . . Robots Built . | . . Authchips . | . . Time . | . . Total Robot Build Rating . | . . Part Schematics Acquired . | . . Parts Built . | . . Authchips . | . . Time . | . . Total Part Build Rating . | . . Parts Repaired . | . . Time . | . . Parts Recycled . | . . Recycled Matter 54 | . 54 Retrieved Matter . | . . Retrieved Components . | . . Parts Scanalyzed . | . . Part Schematics Acquired . | . . Parts Damaged . | . . Bothacking | -11 -10 ------------ Run | Yrd Mat Used RIF Installer . | . . Robots Hacked . | . . Non-combat . | . . Combat . | . . Robot Hacks Applied . | . . Relay Couplers Released . | . . Fabnet Peak Effective % . | . . Robots Rewired . | . . Allies Hacked . | . . Hacks Repelled . | . . Allies | -11 -10 -------- Run | Yrd Mat Total Allies . | . . Largest Group . | . . Highest-Rated Group . | . . Highest-Rated Ally . | . . Total Orders . | . . Ally Attacks . | . . Total Damage . | . . Kills . | . . Allies Corrupted . | . . Allies Melted . | . . Intel | -11 -10 ------- Run | Yrd Mat Robot Analysis Total . | . . Derelict Logs Recovered . | . . Drone Launches . | . . Drone Recoveries . | . . Exploration | -11 -10 ------------- Run | Yrd Mat Turns Passed 1492 | 146 1346 Spaces Moved 350 | 107 243 Core 21 | 20 1 Treads . | . . Legs 161 | 87 74 Wheels 130 | . 130 Hover . | . . Flight 38 | . 38 Fastest Speed 50 | 50 120 Average Speed 340 | 106 443 Slowest Speed 1645 | 120 1645 Overloaded Moves . | . . Propulsion Burnouts . | . . Robots Hopped . | . . Cave-ins Triggered . | . . Exploration Rate (%) 22 | 6 38 Regions Visited 1 Branch Regions . Pre-discovered Areas . | . . Known Exits Taken . | . . Unknown Exits Taken 1 | 1 . Scrap Searched . | . . Spaces Dug . | . . Terrain Destroyed . | . . Melee . | . . Projectile . | . . AOE . | . . Terrain Rammed . | . . Walls Destroyed . | . . Machines Disabled . | . . Actions | -11 -10 --------- Run | Yrd Mat Total 519 | 123 396 Wait 75 | . 75 Move 349 | 106 243 Hop . | . . Pick Up 13 | 4 9 Fast Attach 8 | 6 2 Attach 4 | . 4 Detach 1 | . 1 Swap 3 | . 3 Drop 4 | . 4 Fire 55 | 7 48 Melee . | . . Ram 6 | . 6 Kick 1 | . 1 Crush . | . . Escape Stasis . | . . Rewire . | . . Trap . | . . Miscellaneous . | . . Route ------- -11/Scrapyard -10/Materials (discovered 1 exit: [*Min]) History --------- Turn | Location | Event 2 | -11/Scrapyard | Met Revision 17 121 | -11/Scrapyard | Discovered new exit (range 8) 147 | -11/Scrapyard | Entered Materials 304 | -10/Materials | Build established: Mutant 466 | -10/Materials | Core integrity fell below 50% 740 | -10/Materials | Discovered new exit (range 12) 775 | -10/Materials | Core integrity fell below 20% 1493 | -10/Materials | Destroyed by G-34 Mercenary with Small Laser Last Messages --------------- 01133_ R-06 Scavenger collects Welding Torch. 01135_ R-06 Scavenger inserts Wheel into recycling unit. 01137_ R-06 Scavenger collects Heat Sink. 01141_ R-06 Scavenger collects Aluminum Leg. 01145_ K-01 Serf collects debris. 01147_ Slammed into R-06 Scavenger. 01147_ Destabilizing: System interference. 01147_ Structural Scanner temporarily disabled. 01148_ K-01 Serf collects debris. 01149_ R-06 Scavenger collects Aluminum Leg. 01152_ K-01 Serf collects debris. 01196_ Acquired 28 matter. 01315_ O-16 Technician: "IFF HANDSHAKE FAILED. SECURING TERMINAL." 01323_ ALERT: Hostiles spotted, dispatching reinforcements to Terminal M005. 01390_ K-01 Serf cleans the Machine. 01393_ Slammed into K-01 Serf. 01487_ Flight Unit destroyed. Map ----- +----------------------------------------------------+ | ?????# #??## ### *% # ##?????? | | ?????# #??## ######+### ##?????? | | ?????# #??## # ##?????? | | ??#### ##### % +% ##?????? | | ??#### ##### ! # """ """ ##?????? | | ??# ! # """ """ ##?????? | | ??# ######## # """ """ ##?????? | | ??# ##????## """ ############?????? | | ?## ##????## """" ##############?????? | | ?## ######## """"" % #######???????????????? | | ?## # # """"" ########?????????????????? | | ?## # # """ % ##??????????????????? | | ### # """# ##??????????????????? | | ### # """# ##??????????????????? | | + """# % ##??????????????????? | | # # ######### ##??????????????????? | | ######## ########## ###??????????????????? | | #####??### ###??????????????????? | | ##+#########+######????# ##???????????????????? | | # ## %% ##????# ##???????????????????? | | + ## % ##?#### ##???????????????????? | | ## """ ## ##?#" ##??????????????????? | | ## """ ## ##?#"" ##??????????????????? | | ## """ ## ##?#!! % ##??????????????????? | | ## ## ##?#"" < ##??????????????????? | | ######### ##?#|| @ ##??????????????????? | | # ##### ! ##?#"" ##??????????????????? | | ?????#############?#" ##??????????????????? | | # #??#############?#### ##???????????????????? | | ## ##???????????????????# g#????????????????????? | | ?? ##??????????????????? r ???????????????????? | | ???????????????????????? # /??????????????????? | | ???????????????????????? # ?????????????????? | | ????????????????????????#####?##+????????????????? | | ?????????????????????????????????????????????????? | | ?????????????????????????????????????????????????? | | ?????????????????????????????????????????????????? | | ?????????????????????????????????????????????????? | | ?????????????????????????????????????????????????? | | ?????????????????????????????????????????????????? | | ?????????????????????????????????????????????????? | | ?????????????????????????????????????????????????? | | ?????????????????????????????????????????????????? | | ?????????????????????????????????????????????????? | | ?????????????????????????????????????????????????? | | ?????????????????????????????????????????????????? | | ?????????????????????????????????????????????????? | | ?????????????????????????????????????????????????? | | ?????????????????????????????????????????????????? | | ?????????????????????????????????????????????????? | +----------------------------------------------------+ Best States ------------- Heat Dissipation 25 Energy Generation 10 Energy Capacity 125 Matter Stores 350 Matter Capacity 350 Sight Range 16 Terrain Scan Density 10 Evasion (%) 55 Item Schematics ----------------- None Robot Schematics ------------------ None Fabricated ------------ Nothing Alien Tech Used ----------------- None Achievements -------------- None Challenges ------------ None Game ------ Seed TripodGlidesysAutobeam Manual? 0 Play Time 00:12:39 Cumulative 3.3 hours Start 2024.08.11 @ 16:02:11 End 2024.08.11 @ 16:11:06 Sessions 1 Manual Loads 0 Difficulty Rogue Special Mode None Game No. 2 Rogue 2 Adventurer 0 Explorer 0 Win Type - Total 0 Types 0/0/0/0/0/0/0/0/0 Lore% 1 Gallery% 3 Achievement% 5 Wizard Run 0 Options --------- Layout 1 ASCII 0 Keyboard 1 Movement Arrows Keybinds 1 Fullscreen 1 Font 24/Terminus Map View 50x35 Zoom Use 0% Tactical HUD 1 Map Filters NONE Filters LOW_CONTRAST(13,24,33) Steam 1 RUN: 2071917a-025c-4e93-ab06-f9c8a666d06c